bitfinex-derivatives/quotes_BNBF0:USTF0_20250425
["timestamp","ask_amount","ask_price","bid_price","bid_amount"]
[1745614142456,1.26131108,606.24,603.34,1.337]
[1745614142953,0.28820234,606.23,603.34,1.337]
[1745614144055,0.28820234,606.23,603.33,1.00865432]
[1745614144557,0.28820234,606.23,603.33,2.93565432]
[1745614147557,0.28820234,606.23,603.34,1.677]
[1745614147957,0.28820234,606.23,603.35,1.162]
[1745614148457,1.26131108,606.24,603.35,1.162]
[1745614149155,0.28820114,606.23,603.35,1.162]
[1745614151459,1.26131108,606.24,603.35,1.162]
[1745614152359,0.28821547,606.23,603.35,1.162]
[1745614154457,1.26131108,606.24,603.35,1.162]
[1745614155657,0.28821547,606.23,603.35,1.162]
[1745614157462,1.26131108,606.24,603.35,1.162]
[1745614158963,0.28821547,606.23,603.35,1.162]
[1745614160458,1.26131108,606.24,603.35,1.162]
[1745614161764,0.28821547,606.23,603.35,1.162]
[1745614163463,1.26131108,606.24,603.35,1.162]
[1745614164764,0.28821547,606.23,603.35,1.162]
[1745614167965,0.28821547,606.23,603.34,1.677]
[1745614169464,1.26131108,606.24,603.34,1.677]
[1745614170764,0.28821666,606.23,603.34,1.677]
[1745614172467,1.26131108,606.24,603.34,1.677]
[1745614172668,1.26131108,606.24,603.33,5.094]
[1745614173470,0.28821785,606.23,603.33,5.094]
[1745614175465,1.26131108,606.24,603.33,5.094]
[1745614176269,1.26131108,606.24,603.33,6.751]
[1745614176469,0.28821785,606.23,603.33,6.751]
[1745614178469,1.26131108,606.24,603.33,6.751]
[1745614179370,1.26131108,606.24,603.33,3.143]
[1745614179771,0.28820353,606.23,603.33,3.143]
[1745614181469,1.26131108,606.24,603.33,3.143]
[1745614181769,1.26131108,606.24,603.34,1.243]
[1745614182666,0.28819995,606.23,603.34,1.243]
[1745614182870,0.28819995,606.23,603.35,1.731]
[1745614184570,1.26131108,606.24,603.35,1.731]
[1745614185468,0.28820114,606.23,603.35,1.731]
[1745614187473,1.26131108,606.24,603.35,1.731]
[1745614188675,0.28820114,606.23,603.35,1.731]
[1745614190474,1.26131108,606.24,603.35,1.731]
[1745614191776,0.28820114,606.23,603.35,1.731]
[1745614193476,1.26131108,606.24,603.35,1.731]
[1745614194773,0.28820114,606.23,603.35,1.731]
[1745614196473,1.26131108,606.24,603.35,1.731]
[1745614197780,0.28820114,606.23,603.35,1.731]
[1745614198478,0.28820114,606.23,603.36,1.616]
[1745614199475,1.26131108,606.24,603.36,1.616]
[1745614199778,0.28819995,606.22,603.36,1.616]
[1745614202477,1.26131108,606.24,603.36,1.616]
[1745614202880,0.28819995,606.23,603.36,1.616]
[1745614205486,1.26131108,606.24,603.36,1.616]
[1745614205984,0.28819995,606.23,603.36,1.616]
[1745614208486,1.26131108,606.24,603.36,1.616]
[1745614208986,0.28819995,606.23,603.36,1.616]
[1745614210086,0.28819995,606.23,603.37,1.844]
[1745614211890,0.28819995,606.23,603.36,0.559819]
[1745614213489,0.28819995,606.23,603.35,1.731]
[1745614214493,1.26131108,606.24,603.35,1.731]
[1745614214791,0.28820114,606.22,603.35,1.731]
[1745614217494,1.26131108,606.24,603.35,1.731]
[1745614218895,0.28819637,606.23,603.35,1.731]
[1745614219495,0.28819637,606.23,603.36,1.214]
[1745614220498,1.26131108,606.24,603.36,1.214]
[1745614220697,1.26131108,606.24,603.37,1.911]
[1745614221699,0.28819398,606.23,603.37,1.911]
[1745614223500,1.26131108,606.24,603.37,1.911]
[1745614224806,0.28819398,606.23,603.37,1.911]
[1745614232511,1.26131108,606.24,603.37,1.911]
[1745614233912,0.28819398,606.23,603.37,1.911]
[1745614234414,0.28819398,606.23,603.34,1.536]
[1745614234612,0.28819398,606.23,603.38,1.851]
[1745614235513,1.26131108,606.24,603.38,1.851]
[1745614236213,1.26131108,606.24,603.38,3.541]
[1745614236814,0.28819279,606.23,603.38,3.541]
[1745614241519,1.26131108,606.24,603.38,3.541]
[1745614241819,0.28819279,606.22,603.38,3.541]
[1745614244517,1.26131108,606.24,603.38,3.541]
[1745614245823,0.28819279,606.23,603.38,3.541]
[1745614247524,1.26131108,606.24,603.38,3.541]
[1745614248323,0.28819279,606.23,603.38,3.541]
[1745614250528,1.26131108,606.24,603.38,3.541]
[1745614251524,0.28819279,606.23,603.38,3.541]
[1745614253530,1.26131108,606.24,603.38,3.541]
[1745614254727,0.28819279,606.23,603.38,3.541]
[1745614255623,0.28819279,606.23,603.38,0.64081678]
[1745614256125,0.28819279,606.23,603.39,1.485]
[1745614259526,1.26131108,606.24,603.39,1.485]
[1745614259830,0.28818205,606.22,603.39,1.485]
[1745614265536,1.26131108,606.24,603.39,1.485]
[1745614265938,0.28818205,606.21,603.39,1.485]
[1745614269241,0.28818205,606.21,603.4,1.185]
[1745614271542,1.26131108,606.24,603.4,1.185]
[1745614271740,0.28818086,606.2,603.4,1.185]
[1745614272541,0.28818086,606.2,603.4,2.847]
[1745614274545,1.26131108,606.24,603.4,2.847]
[1745614275644,0.28818086,606.23,603.4,2.847]
[1745614277546,1.26131108,606.24,603.4,2.847]
[1745614278846,0.28818086,606.23,603.4,2.847]
[1745614280646,1.26131108,606.24,603.4,2.847]
[1745614281845,0.28818086,606.23,603.4,2.847]
[1745614282749,0.28818086,606.23,603.4,4.109]
[1745614286550,1.26131108,606.24,603.4,4.109]
[1745614287250,0.28818086,606.23,603.4,4.109]
[1745614289552,1.26131108,606.24,603.4,4.109]
[1745614290251,0.28818086,606.23,603.4,4.109]
[1745614292554,1.26131108,606.24,603.4,4.109]
[1745614293254,0.28818086,606.23,603.4,4.109]
[1745614298656,1.26131108,606.24,603.4,4.109]
[1745614299855,0.28818086,606.23,603.4,4.109]
[1745614301555,1.26131108,606.24,603.4,4.109]
[1745614302958,0.28818086,606.23,603.4,4.109]
[1745614304656,1.26131108,606.24,603.4,4.109]
[1745614305856,0.28818086,606.23,603.4,4.109]
[1745614307557,1.26131108,606.24,603.4,4.109]
[1745614308858,0.28818086,606.23,603.4,4.109]
[1745614313564,1.26131108,606.24,603.4,4.109]
[1745614314167,0.28818086,606.23,603.4,4.109]
[1745614316567,1.26131108,606.24,603.4,4.109]
[1745614316867,0.28818086,606.22,603.4,4.109]
[1745614319569,1.26131108,606.24,603.4,4.109]
[1745614319868,0.28810928,606.21,603.4,4.109]
[1745614322567,1.26131108,606.24,603.4,4.109]
[1745614324072,0.28810451,606.23,603.4,4.109]
[1745614325574,1.26131108,606.24,603.4,4.109]
[1745614326970,0.28810451,606.23,603.4,4.109]
[1745614331578,1.26131108,606.24,603.4,4.109]
[1745614332680,0.28807112,606.23,603.4,4.109]
[1745614334582,1.26131108,606.24,603.4,4.109]
[1745614334883,0.28807112,606.22,603.4,4.109]
[1745614340585,1.26131108,606.24,603.4,4.109]
[1745614340883,0.28807112,606.21,603.4,4.109]
[1745614343587,1.26131108,606.24,603.4,4.109]
[1745614344889,0.28807112,606.23,603.4,4.109]
[1745614346592,1.26131108,606.24,603.4,4.109]
[1745614347794,0.28807112,606.23,603.4,4.109]
[1745614349596,1.26131108,606.24,603.4,4.109]
[1745614350390,0.28807828,606.23,603.4,4.109]
[1745614350894,0.28807828,606.23,603.4,5.824]
[1745614352596,1.26131108,606.24,603.4,5.824]
[1745614353900,0.28807828,606.23,603.4,5.824]
[1745614355600,1.26131108,606.24,603.4,5.824]
[1745614356498,0.28808782,606.23,603.4,5.824]
[1745614358604,1.26131108,606.24,603.4,5.824]
[1745614359905,0.28808782,606.23,603.4,5.824]
[1745614364611,1.26131108,606.24,603.4,5.824]
[1745614365812,0.28808782,606.23,603.4,5.824]
[1745614367612,1.26131108,606.24,603.4,5.824]
[1745614367913,0.28808782,606.22,603.4,5.824]
[1745614370616,1.26131108,606.24,603.4,5.824]
[1745614371517,0.28807828,606.23,603.4,5.824]
[1745614373622,1.26131108,606.24,603.4,5.824]
[1745614374823,0.28807828,606.23,603.4,5.824]
[1745614376626,1.26131108,606.24,603.4,5.824]
[1745614377527,0.28807828,606.23,603.4,5.824]
[1745614379627,1.26131108,606.24,603.4,5.824]
[1745614380927,0.28807112,606.23,603.4,5.824]
[1745614382623,1.26131108,606.24,603.4,5.824]
[1745614383929,0.28807112,606.23,603.4,5.824]
[1745614385633,1.26131108,606.24,603.4,5.824]
[1745614386837,0.28807112,606.23,603.4,5.824]
[1745614388638,1.26131108,606.24,603.4,5.824]
[1745614389839,0.28807112,606.23,603.4,5.824]
[1745614391640,1.26131108,606.24,603.4,5.824]
[1745614392239,0.28807112,606.23,603.4,5.824]
[1745614394641,1.26131108,606.24,603.4,5.824]
[1745614394941,0.28807112,606.22,603.4,5.824]
[1745614397643,1.26131108,606.24,603.4,5.824]
[1745614398945,0.28807112,606.23,603.4,5.824]
[1745614400646,1.26131108,606.24,603.4,5.824]
[1745614401951,0.28807112,606.23,603.4,5.824]
[1745614406650,1.26131108,606.24,603.4,5.824]
[1745614407852,0.28806397,606.23,603.4,5.824]
[1745614409651,1.26131108,606.24,603.4,5.824]
[1745614410652,0.28806397,606.23,603.4,5.824]
[1745614412655,1.26131108,606.24,603.4,5.824]
[1745614413955,0.28806397,606.23,603.4,5.824]
[1745614415666,1.26131108,606.24,603.4,5.824]
[1745614416862,0.28806397,606.23,603.4,5.824]
[1745614418668,1.26131108,606.24,603.4,5.824]
[1745614419866,0.28806159,606.23,603.4,5.824]
[1745614421671,1.26131108,606.24,603.4,5.824]
[1745614422566,0.28806159,606.23,603.4,5.824]
[1745614424677,1.26131108,606.24,603.4,5.824]
[1745614424975,0.28805205,606.22,603.4,5.824]
[1745614427676,1.26131108,606.24,603.4,5.824]
[1745614427879,0.28804728,606.21,603.4,5.824]
[1745614430580,1.26131108,606.24,603.4,5.824]
[1745614431184,0.28804728,606.23,603.4,5.824]
[1745614433686,1.26131108,606.24,603.4,5.824]
[1745614434587,0.28804728,606.23,603.4,5.824]
[1745614439690,1.26131108,606.24,603.4,5.824]
[1745614440890,0.28804251,606.23,603.4,5.824]
[1745614442691,1.26131108,606.24,603.4,5.824]
[1745614443291,0.28804251,606.23,603.4,5.824]
[1745614445696,1.26131108,606.24,603.4,5.824]
[1745614446796,0.28804251,606.23,603.4,5.824]
[1745614448699,1.26131108,606.24,603.4,5.824]
[1745614449298,0.28804251,606.23,603.4,5.824]
[1745614451699,1.26131108,606.24,603.4,5.824]
[1745614452398,0.28804251,606.23,603.4,5.824]
[1745614454700,1.26131108,606.24,603.4,5.824]
[1745614455102,0.28804251,606.22,603.4,5.824]
[1745614457703,1.26131108,606.24,603.4,5.824]
[1745614458003,0.28804251,606.21,603.4,5.824]
[1745614460704,1.26131108,606.24,603.4,5.824]
[1745614461905,0.28804251,606.23,603.4,5.824]
[1745614463706,1.26131108,606.24,603.4,5.824]
[1745614464001,0.28804251,606.22,603.4,5.824]
[1745614469611,1.26131108,606.24,603.4,5.824]
[1745614470315,0.28807828,606.23,603.4,5.824]
[1745614472720,1.26131108,606.24,603.4,5.824]
[1745614472914,0.28807828,606.22,603.4,5.824]
[1745614475617,1.26131108,606.24,603.4,5.824]
[1745614475919,0.28807828,606.21,603.4,5.824]
[1745614478726,1.26131108,606.24,603.4,5.824]
[1745614479128,0.28807828,606.2,603.4,5.824]
[1745614481630,1.26131108,606.24,603.4,5.824]
[1745614482129,0.28806635,606.23,603.4,5.824]
[1745614484731,1.26131108,606.24,603.4,5.824]
[1745614484931,0.28806397,606.22,603.4,5.824]
[1745614487633,1.26131108,606.24,603.4,5.824]
[1745614488234,0.28806397,606.23,603.4,5.824]
[1745614496642,1.26131108,606.24,603.4,5.824]
[1745614497441,0.28806397,606.23,603.4,5.824]
[1745614505845,1.26131108,606.24,603.4,5.824]
[1745614506044,0.28807351,606.22,603.4,5.824]
[1745614511651,1.26131108,606.24,603.4,5.824]
[1745614511949,0.28811644,606.21,603.4,5.824]
[1745614514650,1.26131108,606.24,603.4,5.824]
[1745614515955,0.28812121,606.23,603.4,5.824]
[1745614517751,1.26131108,606.24,603.4,5.824]
[1745614518955,0.28812121,606.23,603.4,5.824]
[1745614520954,1.26131108,606.24,603.4,5.824]
[1745614521957,0.28812121,606.23,603.4,5.824]
[1745614523857,1.26131108,606.24,603.4,5.824]
[1745614524055,0.2881069,606.22,603.4,5.824]
[1745614526660,1.26131108,606.24,603.4,5.824]
[1745614527960,0.28809259,606.23,603.4,5.824]
[1745614529861,1.26131108,606.24,603.4,5.824]
[1745614530060,0.28809259,606.22,603.4,5.824]
[1745614532860,1.26131108,606.24,603.4,5.824]
[1745614533558,0.28809259,606.23,603.4,5.824]
[1745614541671,1.26131108,606.24,603.4,5.824]
[1745614541971,0.28808305,606.22,603.4,5.824]
[1745614544773,1.26131108,606.24,603.4,5.824]
[1745614545072,0.28808305,606.21,603.4,5.824]
[1745614547676,1.26131108,606.24,603.4,5.824]
[1745614547971,0.28808305,606.2,603.4,5.824]
[1745614553977,0.28807112,606.19,603.4,5.824]
[1745614556680,1.26131108,606.24,603.4,5.824]
[1745614556977,0.28807112,606.18,603.4,5.824]
[1745614559683,1.26131108,606.24,603.4,5.824]
[1745614559981,0.28807112,606.17,603.4,5.824]
[1745614562087,1.26131108,606.24,603.4,5.824]
[1745614585903,0.28804966,606.23,603.4,5.824]
[1745614586705,1.26131108,606.24,603.4,5.824]
[1745614587002,0.28804966,606.22,603.4,5.824]
[1745614589707,1.26131108,606.24,603.4,5.824]
[1745614590003,0.28804966,606.21,603.4,5.824]
[1745614592713,1.26131108,606.24,603.4,5.824]
[1745614594012,0.28804966,606.23,603.4,5.824]
[1745614595714,1.26131108,606.24,603.4,5.824]
[1745614596708,0.28804966,606.23,603.4,5.824]
[1745614598910,1.26131108,606.24,603.4,5.824]
[1745614600011,0.28804966,606.23,603.4,5.824]
[1745614601717,1.26131108,606.24,603.4,5.824]
[1745614603215,0.28803774,606.23,603.4,5.824]
[1745614604721,1.26131108,606.24,603.4,5.824]
[1745614605020,0.28803774,606.22,603.4,5.824]
[1745614607718,1.26131108,606.24,603.4,5.824]
[1745614608123,0.28804966,606.23,603.4,5.824]
[1745614610730,1.26131108,606.24,603.4,5.824]
[1745614612030,0.28804966,606.23,603.4,5.824]
[1745614613727,1.26131108,606.24,603.4,5.824]
[1745614615033,0.28804966,606.23,603.4,5.824]
[1745614616732,1.26131108,606.24,603.4,5.824]
[1745614617034,0.28804966,606.22,603.4,5.824]
[1745614619733,1.26131108,606.24,603.4,5.824]
[1745614620232,0.28804966,606.21,603.4,5.824]
[1745614634739,1.26131108,606.24,603.4,5.824]
[1745614635043,0.28809974,606.2,603.4,5.824]
[1745614637745,1.26131108,606.24,603.4,5.824]
[1745614639046,0.28808305,606.23,603.4,5.824]
[1745614640742,1.26131108,606.24,603.4,5.824]
[1745614642047,0.28808305,606.23,603.4,5.824]
[1745614643849,1.26131108,606.24,603.4,5.824]
[1745614644149,0.28808305,606.22,603.4,5.824]
[1745614646751,1.26131108,606.24,603.4,5.824]
[1745614648048,0.28808305,606.23,603.4,5.824]
[1745614649754,1.26131108,606.24,603.4,5.824]
[1745614650055,0.28808305,606.22,603.4,5.824]
[1745614652759,1.26131108,606.24,603.4,5.824]
[1745614653053,0.28808305,606.21,603.4,5.824]
[1745614655754,1.26131108,606.24,603.4,5.824]
[1745614656858,0.28808305,606.23,603.4,5.824]
[1745614658860,1.26131108,606.24,603.4,5.824]
[1745614659161,0.28808066,606.22,603.4,5.824]
[1745614661763,1.26131108,606.24,603.4,5.824]
[1745614662264,0.28807828,606.23,603.4,5.824]
[1745614664763,1.26131108,606.24,603.4,5.824]
[1745614665064,0.28807828,606.22,603.4,5.824]
[1745614667766,1.26131108,606.24,603.4,5.824]
[1745614668066,0.28807112,606.21,603.4,5.824]
[1745614670769,1.26131108,606.24,603.4,5.824]
[1745614672067,0.28806635,606.23,603.4,5.824]
[1745614673973,1.26131108,606.24,603.4,5.824]
[1745614674975,0.28806516,606.23,603.4,5.824]
[1745614676778,1.26131108,606.24,603.4,5.824]
[1745614678079,0.28804966,606.23,603.4,5.824]
[1745614679777,1.26131108,606.24,603.4,5.824]
[1745614681083,0.28804966,606.23,603.4,5.824]
[1745614682783,1.26131108,606.24,603.4,5.824]
[1745614684084,0.28806397,606.23,603.4,5.824]
[1745614685785,1.26131108,606.24,603.4,5.824]
[1745614686886,0.28806397,606.23,603.4,5.824]
[1745614688887,1.26131108,606.24,603.4,5.824]
[1745614689288,0.28806397,606.22,603.4,5.824]
[1745614691790,1.26131108,606.24,603.4,5.824]
[1745614692089,0.28806397,606.21,603.4,5.824]
[1745614694794,1.26131108,606.24,603.4,5.824]
[1745614696094,0.28806397,606.23,603.4,5.824]
[1745614697796,1.26131108,606.24,603.4,5.824]
[1745614698096,0.28806397,606.22,603.4,5.824]
[1745614700797,1.26131108,606.24,603.4,5.824]
[1745614702103,0.28805443,606.23,603.4,5.824]
[1745614703899,1.26131108,606.24,603.4,5.824]
[1745614704098,0.28805443,606.22,603.4,5.824]
[1745614706805,1.26131108,606.24,603.4,5.824]
[1745614707105,0.28805443,606.21,603.4,5.824]
[1745614709808,1.26131108,606.24,603.4,5.824]
[1745614711107,0.28804251,606.23,603.4,5.824]
[1745614712809,1.26131108,606.24,603.4,5.824]
[1745614713105,0.28804251,606.22,603.4,5.824]
[1745614715806,1.26131108,606.24,603.4,5.824]
[1745614717115,0.28804251,606.23,603.4,5.824]
[1745614718915,1.26131108,606.24,603.4,5.824]
[1745614720010,0.28804251,606.23,603.4,5.824]
[1745614721819,1.26131108,606.24,603.4,5.824]
[1745614723116,0.28804251,606.23,603.4,5.824]
[1745614725016,1.26131108,606.24,603.4,5.824]
[1745614726117,0.28804251,606.23,603.4,5.824]
[1745614727818,1.26131108,606.24,603.4,5.824]
[1745614729018,0.28804251,606.23,603.4,5.824]
[1745614730819,1.26131108,606.24,603.4,5.824]
[1745614731719,0.28806397,606.23,603.4,5.824]
[1745614733717,1.26131108,606.24,603.4,5.824]
[1745614734021,0.28806397,606.22,603.4,5.824]
[1745614736824,1.26131108,606.24,603.4,5.824]
[1745614738023,0.28807112,606.23,603.4,5.824]
[1745614739824,1.26131108,606.24,603.4,5.824]
[1745614741020,0.28807112,606.23,603.4,5.824]
[1745614742822,1.26131108,606.24,603.4,5.824]
[1745614744026,0.28807112,606.23,603.4,5.824]
[1745614748927,1.26131108,606.24,603.4,5.824]
[1745614749124,0.28808543,606.22,603.4,5.824]
[1745614751829,1.26131108,606.24,603.4,5.824]
[1745614753023,0.28808782,606.23,603.4,5.824]
[1745614754829,1.26131108,606.24,603.4,5.824]
[1745614756030,0.28808782,606.23,603.4,5.824]
[1745614757834,1.26131108,606.24,603.4,5.824]
[1745614759034,0.28808782,606.23,603.4,5.824]
[1745614760836,1.26131108,606.24,603.4,5.824]
[1745614762137,0.28808782,606.23,603.4,5.824]
[1745614763832,1.26131108,606.24,603.4,5.824]
[1745614765040,0.28808782,606.23,603.4,5.824]
[1745614766837,1.26131108,606.24,603.4,5.824]
[1745614767141,0.28807589,606.22,603.4,5.824]
[1745614769943,1.26131108,606.24,603.4,5.824]
[1745614771044,0.2880592,606.23,603.4,5.824]
[1745614772849,1.26131108,606.24,603.4,5.824]
[1745614774050,0.2880592,606.23,603.4,5.824]
[1745614775849,1.26131108,606.24,603.4,5.824]
[1745614777054,0.28807351,606.23,603.4,5.824]
[1745614781857,1.26131108,606.24,603.4,5.824]
[1745614782157,0.28811167,606.22,603.4,5.824]
[1745614784858,1.26131108,606.24,603.4,5.824]
[1745614785160,0.28812598,606.21,603.4,5.824]
[1745614787864,1.26131108,606.24,603.4,5.824]
[1745614788264,0.28814029,606.23,603.4,5.824]
[1745614790865,1.26131108,606.24,603.4,5.824]
[1745614791066,0.28815938,606.22,603.4,5.824]
[1745614793861,1.26131108,606.24,603.4,5.824]
[1745614795163,0.28816415,606.23,603.4,5.824]
[1745614796872,1.26131108,606.24,603.4,5.824]
[1745614797170,0.28816654,606.22,603.4,5.824]
[1745614799872,1.26131108,606.24,603.4,5.824]
[1745614800366,0.28816893,606.23,603.4,5.824]
[1745614802773,0.28816893,606.23,602.9,1.25912629]
[1745614802968,1.26131108,606.24,602.9,1.25912629]
[1745614803172,0.28822024,606.22,602.9,1.25912629]
[1745614805171,0.28822024,606.22,603.17,2.26527191]
[1745614805676,0.28822024,606.22,603.17,3.82627191]
[1745614805969,1.26131108,606.24,603.17,5.21427191]
[1745614806374,0.28822263,606.21,603.17,5.21427191]
[1745614806575,0.28822263,606.21,603.17,6.63927191]
[1745614811879,1.26131108,606.24,603.17,6.63927191]
[1745614812280,0.28823456,606.2,603.17,6.63927191]
[1745614817885,1.26131108,606.24,603.17,6.63927191]
[1745614819086,0.28822263,606.23,603.17,6.63927191]
[1745614823890,1.26131108,606.24,603.17,6.63927191]
[1745614824989,0.28820831,606.23,603.17,6.63927191]
[1745614826785,1.26131108,606.24,603.17,6.63927191]
[1745614827991,0.28820831,606.23,603.17,6.63927191]
[1745614829891,1.26131108,606.24,603.17,6.63927191]
[1745614830493,0.28820831,606.23,603.17,6.63927191]
[1745614832888,1.26131108,606.24,603.17,6.63927191]
[1745614833194,0.28820831,606.22,603.17,6.63927191]
[1745614835895,1.26131108,606.24,603.17,6.63927191]
[1745614836494,0.2882274,606.23,603.17,6.63927191]
[1745614838890,1.26131108,606.24,603.17,6.63927191]
[1745614839498,0.2882274,606.23,603.17,6.63927191]
[1745614841996,1.26131108,606.24,603.17,6.63927191]
[1745614842395,0.28822979,606.23,603.17,6.63927191]
[1745614844897,1.26131108,606.24,603.17,6.63927191]
[1745614845292,0.28822979,606.23,603.17,6.63927191]
[1745614847896,1.26131108,606.24,603.17,6.63927191]
[1745614848300,0.28822979,606.23,603.17,6.63927191]
[1745614850901,1.26131108,606.24,603.17,6.63927191]
[1745614851199,0.28822979,606.22,603.17,6.63927191]
[1745614853898,1.26131108,606.24,603.17,6.63927191]
[1745614854402,0.28822979,606.23,603.17,6.63927191]
[1745614856104,0.28822979,606.23,603.17,4.56778679]
[1745614856902,1.26131108,606.24,603.17,4.56778679]
[1745614857205,0.28822979,606.22,603.17,4.56778679]
[1745614859907,1.26131108,606.24,603.17,4.56778679]
[1745614860307,0.28822979,606.21,603.17,4.56778679]
[1745614862910,1.26131108,606.24,603.17,4.56778679]
[1745614863209,0.28823695,606.2,603.17,4.56778679]
[1745614865912,1.26131108,606.24,603.17,4.56778679]
[1745614866310,0.28823695,606.23,603.17,4.56778679]
[1745614869010,1.26131108,606.24,603.17,4.56778679]
[1745614869214,0.28823695,606.22,603.17,4.56778679]
[1745614872015,1.26131108,606.24,603.17,4.56778679]
[1745614872509,0.28823695,606.23,603.17,4.56778679]
[1745614874917,1.26131108,606.24,603.17,4.56778679]
[1745614875217,0.28822979,606.22,603.17,4.56778679]
[1745614877921,1.26131108,606.24,603.17,4.56778679]
[1745614878420,0.28820831,606.23,603.17,4.56778679]
[1745614880822,1.26131108,606.24,603.17,4.56778679]
[1745614881120,0.28820831,606.22,603.17,4.56778679]
[1745614883923,1.26131108,606.24,603.17,4.56778679]
[1745614884223,0.28820831,606.21,603.17,4.56778679]
[1745614886927,1.26131108,606.24,603.17,4.56778679]
[1745614887229,0.28820831,606.2,603.17,4.56778679]
[1745614892935,1.26131108,606.24,603.17,4.56778679]
[1745614894132,0.28822979,606.23,603.17,4.56778679]
[1745614895935,1.26131108,606.24,603.17,4.56778679]
[1745614896334,1.26131108,606.24,603.17,2.813]
[1745614896534,1.26131108,606.24,603.17,2.49616213]
[1745614897133,0.28822979,606.23,603.17,2.49616213]
[1745614898936,1.26131108,606.24,603.17,2.49616213]
[1745614899232,1.26131108,606.24,603.17,3.62916213]
[1745614899438,1.26131108,606.24,603.17,5.08616213]
[1745614900138,0.28822979,606.23,603.17,5.08616213]
[1745614901940,1.26131108,606.24,603.17,5.08616213]
[1745614903140,0.2882274,606.23,603.17,5.08616213]
[1745614904839,1.26131108,606.24,603.17,5.08616213]
[1745614905936,0.2882274,606.23,603.17,5.08616213]
[1745614907940,1.26131108,606.24,603.17,5.08616213]
[1745614908435,0.2882274,606.23,603.17,5.08616213]
[1745614913944,1.26131108,606.24,603.17,5.08616213]
[1745614914243,0.2882274,606.22,603.17,5.08616213]
[1745614916945,1.26131108,606.24,603.17,5.08616213]
[1745614917243,0.28821785,606.21,603.17,5.08616213]
[1745614918442,0.28821785,606.21,603.17,3.01464659]
[1745614919943,1.26131108,606.24,603.17,3.01464659]
[1745614920947,1.26131108,606.24,603.17,4.78664659]
[1745614921140,0.28821785,606.23,603.17,4.78664659]
[1745614922946,1.26131108,606.24,603.17,4.78664659]
[1745614924147,0.28821785,606.23,603.17,4.78664659]
[1745614925949,1.26131108,606.24,603.17,4.78664659]
[1745614926550,0.28821785,606.23,603.17,4.78664659]
[1745614928950,1.26131108,606.24,603.17,4.78664659]
[1745614930046,0.2882274,606.23,603.17,4.78664659]
[1745614931953,1.26131108,606.24,603.17,4.78664659]
[1745614933252,0.2882274,606.23,603.17,4.78664659]
[1745614934953,1.26131108,606.24,603.17,4.78664659]
[1745614936253,0.2882274,606.23,603.17,4.78664659]
[1745614937956,1.26131108,606.24,603.17,4.78664659]
[1745614938157,0.2882274,606.22,603.17,4.78664659]
[1745614940659,0.2882274,606.22,603.17,2.715042]
[1745614940960,1.26131108,606.24,603.17,2.715042]
[1745614942160,0.2882274,606.23,603.17,2.715042]
[1745614943059,0.2882274,606.23,603.17,4.078042]
[1745614943865,1.26131108,606.24,603.17,5.456042]
[1745614945070,0.2882274,606.23,603.17,5.456042]
[1745614946873,1.26131108,606.24,603.17,5.456042]
[1745614947574,0.2882274,606.23,603.17,5.456042]
[1745614949974,1.26131108,606.24,603.17,5.456042]
[1745614950474,0.2882274,606.23,603.17,5.456042]
[1745614952976,1.26131108,606.24,603.17,5.456042]
[1745614953277,0.2882274,606.22,603.17,5.456042]
[1745614955983,1.26131108,606.24,603.17,5.456042]
[1745614956281,1.26131108,606.24,603.17,3.38451149]
[1745614956581,0.2882274,606.23,603.17,3.38451149]
[1745614958983,1.26131108,606.24,603.17,3.38451149]
[1745614959483,0.2882274,606.23,603.17,3.38451149]
[1745614960384,0.2882274,606.23,603.17,4.57451149]
[1745614961985,1.26131108,606.24,603.17,4.57451149]
[1745614962481,0.2882274,606.23,603.17,4.57451149]
[1745614964987,1.26131108,606.24,603.17,4.57451149]